bitfinex/quotes_ETHUSD_20240811
["timestamp","ask_amount","ask_price","bid_price","bid_amount"]
[1723380620926,2.65746,2634.1,2633.2,2.4229]
[1723380621108,2.65812,2633.5,2633.2,2.4229]
[1723380621308,2.65816,2633.4,2633.3,0.03869306]
[1723380621744,2.65805,2633.6,2633.3,0.03869306]
[1723380621960,2.65791,2633.7,2633.2,2.4229]
[1723380622166,2.65777,2633.8,2633.2,2.4229]
[1723380622510,2.65777,2633.8,2633.3,0.03869306]
[1723380622734,3.0,2634.0,2633.3,0.24615931]
[1723380623036,2.65796,2633.6,2633.2,2.4229]
[1723380623529,2.65787,2633.7,2633.3,0.03869306]
[1723380623940,5.31626,2633.5,2633.2,2.4229]
[1723380624249,5.847886,2633.5,2633.4,0.03864266]
[1723380624466,5.847886,2633.5,2633.3,0.03869306]
[1723380624467,2.65816,2633.4,2633.3,0.03869306]
[1723380624633,2.65843,2633.2,2632.8,2.2634]
[1723380624810,2.65858,2633.0,2632.8,2.2634]
[1723380625016,5.31721,2633.0,2632.6,0.10184]
[1723380625238,2.65858,2633.0,2632.6,0.10184]
[1723380625449,5.31722,2633.0,2632.6,0.10184]
[1723380625653,0.531722,2633.0,2632.6,0.10184]
[1723380625815,2.65862,2633.0,2632.6,0.10184]
[1723380626125,2.65886,2632.7,2632.6,0.10184]
[1723380626518,5.31772,2632.7,2632.6,0.10184]
[1723380627548,5.65854,2633.1,2632.6,0.10184]
[1723380627549,2.65882,2632.8,2632.6,0.10184]
[1723380627760,5.07462,2632.8,2632.6,0.10184]
[1723380627961,2.65886,2632.7,2632.6,0.10184]
[1723380628174,5.31772,2632.7,2632.6,0.10184]
[1723380628852,2.65872,2632.9,2632.6,0.10184]
[1723380629046,5.65879,2632.8,2632.6,0.10184]
[1723380629269,2.65886,2632.7,2632.6,0.10184]
[1723380630982,0.6224574,2632.9,2632.6,0.10184]
[1723380630983,2.65854,2633.1,2632.6,0.10184]
[1723380631171,2.4158,2633.7,2632.6,0.10184]
[1723380631172,2.65841,2633.2,2632.6,0.10184]
[1723380631491,2.65872,2632.9,2632.7,0.03954313]
[1723380631655,5.31748,2632.9,2632.7,0.03954313]
[1723380631857,0.531748,2632.9,2632.6,0.10184]
[1723380632073,2.65883,2632.8,2632.6,0.10184]
[1723380632460,5.31769,2632.8,2632.7,0.08728574]
[1723380632841,3.0,2633.1,2632.6,0.10184]
[1723380632842,5.31772,2632.7,2632.6,0.10184]
[1723380633081,2.65886,2632.7,2632.6,0.10184]
[1723380633264,2.65882,2632.8,2632.6,0.10184]
[1723380633469,2.65886,2632.7,2632.6,0.10184]
[1723380633788,5.31772,2632.7,2632.6,0.10184]
[1723380636585,2.65886,2632.7,2632.6,0.10184]
[1723380637102,2.65994,2631.7,2631.0,4.9239]
[1723380637308,2.65973,2631.9,2631.2,2.6603]
[1723380637591,2.65914,2632.5,2631.8,2.2634]
[1723380637796,2.65941,2632.2,2631.8,2.2634]
[1723380638006,2.65941,2632.2,2631.8,2.48974]
[1723380638154,2.65922,2632.4,2631.8,2.48974]
[1723380638357,2.65845,2633.2,2632.5,2.65904]
[1723380638667,2.65893,2632.7,2632.3,2.2634]
[1723380639068,2.4158,2633.3,2632.3,2.2634]
[1723380639069,2.6586,2633.0,2632.3,2.2634]
[1723380639267,2.65838,2633.2,2632.3,2.2634]
[1723380639568,2.65843,2633.2,2632.4,2.88542]
[1723380639906,5.31647,2633.4,2632.6,2.65888]
[1723380640204,2.65839,2633.2,2632.7,0.08248889]
[1723380640373,2.65823,2633.4,2632.7,2.74126889]
[1723380640572,2.65823,2633.4,2632.9,2.2634]
[1723380641000,0.507366,2633.6,2633.0,0.08215067]
[1723380641191,2.98197451,2633.9,2633.0,0.08215067]
[1723380642107,3.58691544,2634.8,2633.0,0.08215067]
[1723380642108,2.65738,2634.2,2633.5,2.65799]
[1723380642400,2.4158,2634.6,2633.3,2.65818]
[1723380642401,2.65703,2634.6,2633.3,2.65818]
[1723380642617,2.65703,2634.6,2633.1,0.55]
[1723380642618,2.65785,2633.8,2633.6,0.08181995]
[1723380642823,2.6574,2634.2,2633.6,0.08181995]
[1723380642824,5.3157,2633.7,2633.6,0.08181995]
[1723380643128,5.3157,2633.7,2633.1,2.2634]
[1723380643129,2.65806,2633.5,2633.1,2.2634]
[1723380643347,2.65785,2633.7,2633.1,2.2634]
[1723380643623,2.65801,2633.6,2633.2,0.08189617]
[1723380643781,2.65822,2633.4,2633.2,0.08189617]
[1723380644181,2.65806,2633.5,2633.2,0.08189617]
[1723380644383,2.65813,2633.5,2633.2,0.08189617]
[1723380644697,2.65826,2633.3,2633.2,0.08189617]
[1723380645221,2.65806,2633.5,2633.2,0.08189617]
[1723380645432,2.65806,2633.5,2632.8,2.4234]
[1723380645433,2.9504445,2633.5,2632.8,2.4234]
[1723380645585,2.65806,2633.5,2633.3,0.08184396]
[1723380645784,2.65806,2633.5,2632.8,2.4234]
[1723380646029,2.65826,2633.3,2632.8,2.4234]
[1723380646402,2.923916,2633.5,2632.9,0.08205284]
[1723380646602,2.6579,2633.7,2632.9,0.08205284]
[1723380646938,5.3154,2633.9,2633.2,2.6583]
[1723380647243,2.65728,2634.3,2633.5,2.65805]
[1723380647244,2.65751,2634.1,2633.5,2.65805]
[1723380647401,3.188991,2634.1,2633.5,2.65805]
[1723380647599,9.7158,2634.4,2633.9,2.65763]
[1723380647600,7.3,2634.4,2633.9,2.65763]
[1723380647836,2.922803,2634.5,2634.0,2.65755]
[1723380647837,0.265703,2634.5,2634.0,2.65755]
[1723380648043,0.265703,2634.5,2633.9,0.07592513]
[1723380648216,2.922753,2634.5,2633.9,2.65759]
[1723380648410,0.265703,2634.5,2634.0,2.73849747]
[1723380648840,0.265703,2634.5,2633.6,5.08126]
[1723380649139,2.65731,2634.3,2634.1,0.08095529]
[1723380649310,0.265703,2634.5,2633.6,2.4234]
[1723380649519,12.6138,2634.7,2634.0,2.65747]
[1723380649827,2.65711,2634.5,2634.1,0.08095529]
[1723380650020,5.31425,2634.5,2633.8,2.65767]
[1723380650340,9.95693,2634.7,2633.9,2.4234]
[1723380650641,2.6572,2634.4,2633.9,2.4234]
[1723380650954,2.65736,2634.2,2633.6,2.65795]
[1723380651131,5.3144,2634.4,2633.6,2.65795]
[1723380651316,3.48863,2634.4,2633.7,0.08116404]
[1723380651642,3.48863,2634.4,2633.5,2.4234]
[1723380651643,0.83144,2634.4,2633.9,2.65765]
[1723380652159,7.3,2634.7,2634.1,5.08082]
[1723380652307,7.3,2634.7,2634.2,2.65734]
[1723380652907,7.3,2634.7,2634.3,0.08085094]
[1723380653118,7.3,2635.2,2634.3,0.08085094]
[1723380653335,2.65655,2635.0,2634.4,2.65707]
[1723380653533,2.65678,2634.8,2634.2,2.65726]
[1723380653757,2.65678,2634.8,2634.1,2.4234]
[1723380653758,2.65705,2634.5,2634.1,2.4234]
[1723380653956,2.65705,2634.5,2634.3,0.08085094]
[1723380654233,2.65706,2634.5,2634.1,2.4234]
[1723380654434,2.65706,2634.5,2634.4,0.08079877]
[1723380654634,2.65706,2634.5,2634.1,2.4234]
[1723380654955,2.65659,2635.0,2634.4,0.08079877]
[1723380655267,0.565657,2634.9,2634.3,2.65724]
[1723380655426,2.65677,2634.8,2634.1,5.08079]
[1723380655630,2.65677,2634.8,2634.4,0.08079877]
[1723380655826,2.657,2634.6,2634.1,2.4234]
[1723380656032,2.65721,2634.4,2633.8,2.4234]
[1723380656231,7.865657,2634.9,2633.5,2.65801]
[1723380656232,2.65751,2634.1,2633.5,2.65798]
[1723380656473,2.65751,2634.1,2633.5,5.08138]
[1723380656678,2.6572,2634.4,2633.6,2.65786]
[1723380656883,2.6572,2634.4,2633.7,2.65783]
[1723380657074,2.6572,2634.4,2633.7,5.31562]
[1723380657232,0.56572,2634.3,2633.6,2.65795]
[1723380657438,2.6574,2634.2,2633.5,5.08139]
[1723380657638,5.31484,2634.2,2633.5,5.08139]
[1723380657840,2.65755,2634.0,2633.2,2.4234]
[1723380658035,2.65785,2633.7,2633.2,2.4234]
[1723380658371,0.49762995,2634.1,2632.9,2.4234]
[1723380658560,2.65821,2633.4,2632.9,2.4234]
[1723380658735,5.31603,2633.6,2632.9,2.4234]
[1723380658935,2.65806,2633.5,2632.9,2.4234]
[1723380659131,2.65817,2633.4,2632.9,2.4234]
[1723380659375,3.189583,2633.6,2632.9,2.4234]
[1723380659376,5.31603,2633.6,2632.9,2.4234]
[1723380659578,5.31562,2633.8,2633.0,2.65854]
[1723380659765,0.531562,2633.7,2633.0,2.65849]
[1723380659975,3.0,2634.1,2633.2,2.65832]
[1723380660163,3.5926301,2634.7,2633.1,2.65842]
[1723380660164,2.65773,2633.9,2633.1,2.65842]
[1723380660382,2.65772,2633.9,2633.2,2.65836]
[1723380660554,2.65758,2634.0,2633.2,2.65828]
[1723380660751,2.65766,2633.9,2633.2,2.65828]
[1723380660939,2.65786,2633.7,2633.0,2.65848]
[1723380661280,2.65765,2633.9,2633.1,2.65845]
[1723380661482,2.65749,2634.1,2633.1,0.07870025]
[1723380661655,3.278089,2634.1,2633.5,2.4234]
[1723380661981,2.65775,2633.9,2633.5,2.4234]
[1723380662285,3.278099,2634.1,2633.6,0.0784392]
[1723380662673,0.620599,2634.1,2633.6,0.0784392]
[1723380663180,3.278059,2634.1,2633.6,0.0784392]
[1723380663342,5.6573,2634.3,2633.7,2.65779]
[1723380663546,3.0,2634.3,2633.7,2.65779]
[1723380663749,3.0,2634.4,2633.8,0.07829643]
[1723380663999,2.65695,2634.6,2633.9,2.65759]
[1723380664144,2.65694,2634.7,2633.9,2.65758]
[1723380664483,5.31343,2634.9,2634.1,2.65741]
[1723380664641,2.4943,2635.1,2634.3,2.65719]
[1723380664642,0.531343,2634.8,2634.3,2.65719]
[1723380665017,2.6567,2634.9,2634.3,2.65719]
[1723380665187,2.65635,2635.2,2634.5,2.65698]
[1723380665482,2.65629,2635.3,2634.6,0.07787554]
[1723380665691,2.65634,2635.2,2634.6,0.07787554]
[1723380665864,2.65684,2634.7,2634.6,0.07787554]
[1723380666058,0.531365,2634.7,2634.1,2.4226]
[1723380666273,2.65702,2634.6,2634.1,2.4226]
[1723380666595,6.50922451,2635.4,2633.7,2.4226]
[1723380666596,2.65723,2634.4,2633.7,2.4226]
[1723380666905,0.265723,2634.3,2633.7,5.08045]
[1723380667089,2.65723,2634.4,2633.8,2.65769]
[1723380667481,2.65723,2634.4,2633.7,2.4226]
[1723380667698,5.31447,2634.4,2633.7,5.08044]
[1723380667876,2.65699,2634.6,2633.8,2.65774]
[1723380668205,2.65699,2634.6,2634.0,2.65755]
[1723380668502,2.65699,2634.6,2633.8,2.65774]
[1723380668503,5.65656,2635.0,2634.2,2.65728]
[1723380668707,3.0,2634.9,2634.3,5.07975]
[1723380668909,6.128286,2635.0,2634.3,5.07975]
[1723380669110,3.471646,2635.0,2634.3,5.07975]
[1723380669409,0.815086,2635.0,2634.3,5.07976]
[1723380669571,2.65661,2635.0,2634.3,5.853475]
[1723380670111,5.31279,2635.2,2634.3,5.853475]
[1723380670276,2.65638,2635.2,2634.3,5.853475]
[1723380670461,7.565606,2635.4,2634.3,5.853475]
[1723380670462,0.265638,2635.1,2634.3,5.07976]
[1723380670668,2.65691,2634.7,2634.3,2.4226]
[1723380671024,5.1512,2634.7,2633.5,5.08061]
[1723380671304,5.1512,2634.7,2632.6,0.1]
[1723380671305,2.65765,2633.9,2633.2,2.4226]
[1723380671610,2.6578,2633.8,2633.2,2.930698]
[1723380671909,2.6578,2633.8,2633.2,2.4226]
[1723380672113,2.65728,2634.3,2632.4,0.3792]
[1723380672114,2.65812,2633.5,2632.8,2.65876]
[1723380672422,2.65812,2633.5,2632.8,2.65874]
[1723380672583,2.65812,2633.5,2632.7,2.65878]
[1723380672584,2.65816,2633.4,2632.7,2.65878]
[1723380672905,2.65756,2634.0,2632.5,2.65902]
[1723380672906,2.65834,2633.3,2632.5,2.65902]
[1723380673401,2.65788,2633.7,2632.7,2.65882]
[1723380673601,2.65869,2632.9,2632.4,2.4226]
[1723380673803,2.65841,2633.2,2632.4,2.4226]
[1723380674013,2.65823,2633.4,2632.5,2.65906]
[1723380674322,3.0,2633.6,2632.9,2.65858]
[1723380674603,2.65828,2633.3,2632.7,2.65884]
[1723380674806,2.65828,2633.3,2632.6,3.167126]
[1723380674978,2.65843,2633.2,2632.6,0.508166]
[1723380675304,2.65846,2633.1,2632.7,0.07643398]
[1723380675826,5.31752,2632.8,2632.7,0.07643398]
[1723380676310,2.65926,2632.4,2631.7,2.65986]
[1723380676515,2.65899,2632.6,2631.8,2.65977]
[1723380676713,0.565899,2632.6,2631.8,2.72964015]
[1723380676931,2.65902,2632.6,2631.8,2.72957015]
[1723380677099,2.65902,2632.6,2631.9,2.65965]
[1723380677415,3.0,2632.8,2631.9,0.06982832]
[1723380677416,5.31826,2632.5,2631.9,0.06982832]
[1723380677596,2.6591,2632.5,2631.9,0.06982832]
[1723380677796,2.6591,2632.5,2631.9,3.26842115]
[1723380677998,2.65898,2632.6,2632.0,2.65953]
[1723380678318,5.31786,2632.7,2632.1,0.06877014]
[1723380678510,2.65903,2632.6,2632.1,0.06877014]
[1723380678879,5.65878,2632.8,2632.1,2.65944]
[1723380679075,2.65868,2632.9,2632.2,0.33466189]
[1723380679421,2.65903,2632.6,2632.2,0.06871789]
[1723380679726,2.65897,2632.6,2631.9,3.19853283]
[1723380679890,2.65892,2632.7,2632.3,0.06866563]
[1723380680085,2.65892,2632.7,2632.0,2.97939328]
[1723380680601,2.65884,2632.8,2632.0,2.97935328]
[1723380680802,2.65888,2632.7,2632.1,0.06877014]
[1723380681003,2.65914,2632.5,2632.1,0.06877014]
[1723380681174,2.4943,2632.6,2632.1,0.06877014]
[1723380681175,2.65931,2632.3,2632.1,0.06877014]
[1723380681375,2.65931,2632.3,2631.6,2.6599]
[1723380681575,2.65931,2632.3,2631.6,3.191902]
[1723380681818,2.65931,2632.3,2631.7,0.06675967]
[1723380682176,2.65911,2632.5,2631.8,2.65976]
[1723380682377,2.65911,2632.5,2631.9,5.22485198]
[1723380682614,5.65899,2632.6,2631.9,2.48925512]
[1723380682818,2.65923,2632.4,2631.9,2.48925512]
[1723380683117,2.65923,2632.4,2631.9,0.06665512]
[1723380683416,2.65945,2632.2,2631.9,0.06665512]
[1723380683714,2.65945,2632.2,2632.0,0.06660286]
[1723380684075,2.65945,2632.2,2631.6,2.954602]
[1723380684387,3.0,2632.6,2631.7,0.06675967]
[1723380684388,2.65907,2632.5,2631.7,0.06675967]
[1723380684592,5.65901,2632.6,2631.9,2.65966]
[1723380684779,2.65907,2632.5,2631.9,2.65966]
[1723380684980,5.65901,2632.6,2632.0,0.06681123]
[1723380685305,3.58338335,2633.6,2631.8,2.6597]
[1723380685306,2.658,2633.6,2632.9,2.65857]
[1723380685516,2.65808,2633.5,2633.0,2.709757]
[1723380685825,2.6582,2633.4,2633.0,2.4439]
[1723380685980,2.6582,2633.4,2633.1,0.06620531]
[1723380686389,5.31605,2633.6,2633.1,0.06620531]
[1723380686634,2.6578,2633.8,2633.1,2.72463531]
[1723380686811,2.65801,2633.6,2633.1,0.06620531]
[1723380687214,2.65821,2633.4,2633.1,0.06620531]
[1723380687397,2.65801,2633.6,2633.1,0.06620531]
[1723380687594,2.65779,2633.8,2633.1,0.06620531]
[1723380687820,2.65796,2633.6,2633.1,0.06620531]
[1723380688928,2.65782,2633.8,2633.1,0.06620531]
[1723380689222,2.65796,2633.6,2633.1,0.06620531]
[1723380689726,2.65814,2633.5,2633.1,0.06620531]
[1723380690227,2.65781,2633.8,2633.1,0.06620531]
[1723380690523,2.65814,2633.5,2633.1,0.06620531]
[1723380690725,2.6582,2633.4,2633.1,0.06620531]
[1723380690884,5.31672,2633.2,2633.1,0.06620531]
[1723380691087,2.65882,2632.8,2632.2,2.4439]
[1723380691304,2.65882,2632.8,2632.2,2.709846]
[1723380691638,2.65882,2632.8,2632.3,0.06631763]
[1723380691844,0.22745,2633.4,2632.3,2.72557763]
[1723380691845,2.65861,2633.0,2632.3,2.72557763]
[1723380692046,2.924601,2632.9,2632.4,0.06615429]
[1723380692206,2.65898,2632.6,2632.4,0.06615429]
[1723380692403,2.65898,2632.6,2632.5,0.06610204]
[1723380692603,2.65898,2632.6,2632.2,2.4439]
[1723380692604,2.65912,2632.5,2631.8,5.10363]
[1723380692947,2.65912,2632.5,2631.9,0.06641557]
[1723380693106,2.65938,2632.2,2631.9,0.06641557]
[1723380693749,2.66005,2631.6,2630.6,2.66089]
[1723380693937,2.2745,2632.3,2630.8,5.10468]
[1723380693938,2.65986,2631.8,2630.8,5.10468]
[1723380694103,2.65986,2631.8,2630.9,0.07600717]
[1723380694309,2.66004,2631.6,2631.2,0.01326854]
[1723380694701,2.66022,2631.4,2631.2,0.01326854]
[1723380695081,2.66022,2631.4,2630.6,2.66095]
[1723380695082,2.66138,2630.3,2629.7,0.1273271]
[1723380695239,2.66116,2630.5,2629.7,0.1273271]
[1723380695401,2.66106,2630.6,2629.7,2.5712271]
[1723380695602,2.66083,2630.8,2630.0,2.66159]
[1723380695802,2.66083,2630.8,2630.0,3.193926]
[1723380696046,5.66063,2631.0,2630.0,0.532336]
[1723380696341,3.0,2631.0,2629.7,2.5712271]
[1723380696547,2.66097,2630.7,2629.9,2.56163]
[1723380696840,2.66102,2630.6,2629.9,2.56163]
[1723380697148,2.66102,2630.6,2629.9,0.77947271]
[1723380697349,2.926869,2630.8,2629.9,0.77947271]
[1723380697350,2.6604,2631.2,2630.2,2.6613]
[1723380697640,3.0,2631.1,2630.4,2.66119]
[1723380697941,3.56604,2631.1,2630.2,2.66138]
[1723380698163,3.56604,2631.1,2630.5,2.66106]
[1723380698455,2.2745,2631.6,2630.9,2.6606]
[1723380698456,2.66002,2631.6,2630.9,2.6606]
[1723380698756,2.65979,2631.8,2630.8,2.66071]
[1723380698963,2.65979,2631.8,2631.0,2.66049]
[1723380698964,2.65988,2631.7,2631.0,2.66049]
[1723380699161,3.191967,2631.6,2630.9,2.66059]
[1723380699455,2.66,2631.6,2630.7,2.66081]
[1723380699626,2.65981,2631.8,2630.9,2.66061]
[1723380699832,2.2745,2632.1,2630.6,2.9939]
[1723380699833,2.65961,2632.0,2631.1,2.66041]
[1723380700044,2.65961,2632.0,2631.2,2.6603]
[1723380700236,0.493411,2631.9,2631.1,2.66041]
[1723380700619,0.493411,2631.9,2630.8,2.66074]
[1723380700967,2.65957,2632.0,2631.3,2.66027]
[1723380701252,2.65957,2632.0,2631.4,0.05130942]
[1723380701562,2.65999,2631.6,2631.4,0.05130942]
[1723380701763,2.66007,2631.5,2631.4,0.05130942]
[1723380702182,2.66007,2631.5,2630.3,2.66127]
[1723380702183,2.66055,2631.1,2630.3,2.66122]
[1723380702457,2.2745,2631.0,2629.7,0.1273271]
[1723380702629,2.66078,2630.9,2629.7,2.7891771]
[1723380702831,2.66051,2631.1,2630.4,2.66117]
[1723380703019,2.66041,2631.2,2630.4,2.66112]
[1723380703357,3.23209276,2631.1,2630.4,2.66112]
[1723380703561,0.57160276,2631.1,2630.4,2.66112]
[1723380703855,5.66011,2631.5,2630.2,2.4439]
[1723380703856,5.66011,2631.5,2630.7,2.66078]
[1723380704061,3.0,2631.5,2630.9,2.66067]
[1723380704258,0.565991,2631.5,2630.9,2.66067]
[1723380704553,3.0,2631.6,2631.0,2.66051]
[1723380704764,5.66004,2631.6,2630.9,2.66067]
[1723380705082,5.66004,2631.6,2630.7,2.66088]
[1723380705083,2.65955,2632.1,2631.2,2.66037]
[1723380705375,2.65955,2632.1,2630.4,2.66113]
[1723380705376,2.66026,2631.4,2630.6,2.66094]
[1723380705525,2.66026,2631.4,2630.6,3.453564]
[1723380705725,2.66,2631.6,2630.8,2.66072]
[1723380706149,2.66,2631.6,2630.8,2.66075]
[1723380706150,2.66002,2631.6,2630.8,2.66075]
[1723380706366,2.926022,2631.6,2630.8,2.66075]
[1723380706550,2.926022,2631.6,2630.9,0.05174134]
[1723380707543,2.66009,2631.5,2630.9,0.05174134]
[1723380707953,2.926022,2631.6,2630.9,0.05174134]
[1723380708469,0.266002,2631.6,2630.9,0.05174134]
[1723380708672,2.925565,2632.0,2631.2,2.66032]
[1723380708823,2.925565,2632.0,2631.3,0.05153214]
[1723380708824,5.65973,2631.9,2631.3,0.05153214]
[1723380709028,0.8585295,2631.8,2631.3,0.05153214]
[1723380709252,0.8585295,2631.8,2631.2,2.66032]
[1723380709448,0.8585295,2631.8,2631.3,2.66027]
[1723380709663,2.65941,2632.2,2631.4,2.66012]
[1723380709866,2.65941,2632.2,2631.5,0.05142757]
[1723380709867,2.65958,2632.0,2631.5,0.05142757]
[1723380710039,2.65958,2632.0,2631.2,4.926]
[1723380710257,2.65958,2632.0,2631.3,0.05153214]
[1723380710903,3.0,2632.1,2631.3,0.05153214]
[1723380710904,2.65999,2631.6,2631.3,0.05153214]
[1723380711052,2.65999,2631.6,2630.8,2.66077]
[1723380711251,2.65999,2631.6,2630.9,0.54438834]
[1723380711697,2.65999,2631.6,2630.9,2.71242134]
[1723380712282,2.6596,2632.0,2631.3,2.66019]
[1723380712597,2.6596,2632.0,2631.4,0.05147985]
[1723380712757,3.0,2632.1,2631.5,2.66004]
[1723380712950,3.813332,2632.1,2631.7,2.65987]
[1723380713153,2.4739,2632.7,2631.6,2.65997]
[1723380713154,5.31822,2632.5,2631.6,2.71128529]
[1723380713360,5.31821,2632.5,2631.8,2.71146015]
[1723380713574,2.65927,2632.3,2631.7,0.05180242]
[1723380713779,2.65927,2632.3,2631.9,0.05159362]
[1723380713958,2.65927,2632.3,2631.8,0.05164589]
[1723380714161,2.65927,2632.3,2632.0,0.05154135]
[1723380714363,3.191106,2632.3,2631.9,0.05159362]
[1723380714657,2.65947,2632.1,2631.2,3.0]
[1723380714986,0.531836,2632.3,2631.7,2.65981]
[1723380715148,2.65915,2632.5,2631.7,2.65981]
[1723380715348,3.0,2632.4,2631.9,2.65963]
[1723380715586,2.65871,2632.9,2632.1,2.6594]
[1723380715799,2.65871,2632.9,2632.2,2.65936]
[1723380715966,2.65858,2633.0,2632.3,2.6592]
[1723380716153,2.65893,2632.7,2632.1,2.6594]
[1723380716351,0.513241,2633.0,2631.6,2.65995]
[1723380716574,2.65915,2632.5,2631.7,5.31961]
[1723380716880,2.4739,2633.1,2631.9,2.65958]
[1723380716881,2.65891,2632.7,2631.9,2.65958]
[1723380717707,2.65915,2632.5,2631.7,2.65981]
[1723380718001,0.265915,2632.4,2631.8,2.65973]
[1723380718158,2.6592,2632.4,2631.7,2.65979]
[1723380718354,5.65867,2632.9,2631.5,2.66004]
[1723380718355,2.65937,2632.2,2631.5,2.66004]
[1723380718700,2.65937,2632.2,2631.4,5.2657]
[1723380718701,2.65953,2632.1,2631.4,5.2657]
[1723380718994,2.65954,2632.1,2631.4,6.11095]
[1723380719199,2.4739,2632.5,2631.1,2.66042]
[1723380719398,2.4739,2632.5,2631.1,2.66043]
[1723380719399,2.65965,2632.0,2631.1,2.66043]
[1723380719582,2.65973,2631.9,2631.2,2.6603]
[1723380720111,2.925615,2632.0,2631.1,5.32084]
[1723380720112,2.65983,2631.8,2631.1,5.32084]
[1723380720254,2.65983,2631.8,2631.1,2.66041]
[1723380720456,2.65978,2631.8,2630.8,2.2657]
[1723380720768,2.66026,2631.4,2630.8,2.66078]
[1723380720955,2.66026,2631.4,2630.6,2.66091]
[1723380720956,2.66034,2631.3,2630.6,2.66091]
[1723380721161,2.66026,2631.4,2630.6,2.66091]
[1723380721363,2.66026,2631.4,2630.7,0.492661]
[1723380721590,2.66026,2631.4,2630.7,0.54442341]
[1723380721894,5.4739,2631.9,2631.2,2.66031]
[1723380721895,8.13363,2631.9,2631.2,2.66031]
[1723380722096,2.65942,2632.2,2631.3,2.66019]
[1723380722401,2.65942,2632.2,2631.3,2.97771959]
[1723380722715,0.35885822,2632.3,2631.3,0.31747959]
[1723380722716,2.65974,2631.9,2631.3,0.31747959]
[1723380722853,2.65974,2631.9,2631.3,2.97768959]
[1723380723059,5.13371,2631.8,2631.3,0.05144859]
[1723380723294,0.531925,2631.9,2631.1,2.66041]
[1723380723496,2.4739,2632.1,2631.2,0.05150088]
[1723380723865,2.4739,2632.1,2631.2,2.71183088]
[1723380724174,3.0,2632.2,2631.4,2.66009]
[1723380724175,2.65957,2632.0,2631.4,2.66009]
[1723380724701,2.65957,2632.0,2631.2,2.71182088]
[1723380724702,2.65957,2632.0,2631.5,0.05134402]
[1723380724863,2.65957,2632.0,2631.2,2.66032]
[1723380724864,2.65967,2631.9,2631.2,5.32063]
[1723380725065,2.65967,2631.9,2631.3,0.05144859]
[1723380725689,3.0,2632.2,2631.4,2.4162]
[1723380725893,2.6598,2631.8,2631.5,0.05134402]
[1723380726078,6.01814822,2632.3,2631.1,2.4162]
[1723380726261,6.01814822,2632.3,2629.9,3.55638769]
[1723380726262,2.66044,2631.2,2630.5,5.07723]
[1723380726463,2.66044,2631.2,2630.6,0.507723]
[1723380726797,2.66033,2631.3,2630.6,2.66093]
[1723380727174,5.32028,2631.5,2630.8,2.66077]
[1723380727500,2.65963,2632.0,2631.3,2.66028]
[1723380727725,2.65963,2632.0,2631.3,2.66021]
[1723380728471,2.65963,2632.0,2631.2,2.4162]
[1723380728472,2.65942,2632.2,2631.6,2.65997]
[1723380728674,3.35885822,2632.3,2631.4,2.66009]
[1723380728675,2.65949,2632.1,2631.4,2.66009]
[1723380728909,2.65968,2631.9,2631.3,2.66026]
[1723380729265,2.65977,2631.8,2631.2,5.07652]
[1723380729794,2.65968,2631.9,2631.3,2.66026]
[1723380730161,2.65968,2631.9,2631.2,5.584172]
[1723380730582,2.65968,2631.9,2630.6,3.0]
[1723380730583,2.66021,2631.4,2630.5,2.66101]
[1723380730806,2.66021,2631.4,2630.8,2.66078]
[1723380730807,2.66025,2631.4,2630.8,2.66078]
[1723380731166,2.66029,2631.3,2630.6,5.32186]
[1723380731463,6.98599289,2631.8,2631.0,2.66057]
[1723380731464,6.59114107,2631.8,2631.0,2.66057]
[1723380731671,5.3199,2631.7,2631.0,2.66057]
[1723380731869,2.66004,2631.6,2631.1,0.0484475]
[1723380732375,2.66008,2631.5,2631.1,0.0484475]
[1723380732578,3.59421291,2631.7,2631.1,0.0484475]
[1723380732789,2.65995,2631.7,2631.1,2.7088675]
[1723380733286,2.65995,2631.7,2631.1,0.0484475]
[1723380733287,2.66003,2631.6,2631.1,0.0484475]
[1723380733477,2.66003,2631.6,2630.8,5.07692]
[1723380733478,2.65995,2631.7,2631.0,5.32109]
[1723380733676,3.58957,2632.2,2631.1,0.5805565]
[1723380733908,2.65954,2632.1,2631.5,2.66001]
[1723380734108,2.65954,2632.1,2631.6,0.04818606]
[1723380734421,2.65954,2632.1,2631.4,5.07637]
[1723380734422,2.65954,2632.1,2631.4,7.73649]
[1723380734714,2.65968,2631.9,2631.5,0.04823834]
[1723380734923,0.764267,2632.1,2631.6,2.65996]
[1723380735232,0.764267,2632.1,2631.7,0.04813378]
[1723380735420,3.423787,2632.1,2631.7,0.04813378]
[1723380735715,3.423787,2632.1,2631.4,5.07631]
[1723380735716,3.423787,2632.1,2631.8,0.04808151]
[1723380735884,0.3423787,2632.0,2631.4,5.07631]
[1723380736079,3.423787,2632.1,2631.9,0.04802924]
[1723380736279,3.423787,2632.1,2631.4,5.07631]
[1723380736541,2.65932,2632.3,2631.6,2.65997]
[1723380736723,2.65932,2632.3,2631.7,0.04813378]
[1723380736892,2.65932,2632.3,2631.7,2.65987]
[1723380737093,2.65932,2632.3,2631.6,2.65988]
[1723380737094,6.243549,2632.3,2631.8,0.0480607]
[1723380737305,3.584209,2632.3,2631.4,7.73643]
[1723380737509,3.584209,2632.3,2631.5,0.04821753]
[1723380737704,2.65948,2632.1,2631.5,2.70823753]
[1723380737993,2.65948,2632.1,2631.6,2.65996]
[1723380738329,2.65948,2632.1,2631.7,0.04811297]
[1723380738538,2.65932,2632.3,2631.7,0.04811297]
[1723380738902,2.6591,2632.5,2631.8,2.65969]
[1723380739122,2.6591,2632.5,2631.9,2.70761843]
[1723380739593,2.65851,2633.1,2632.5,2.65905]